{"text_format":"3","workbook":"xlsx","n_sheets":1,"sheets":["Calculadora de Empréstimos"],"not_rendered":{"defined_names":9},"read":"whole","date_system":"1900"}

{"sheet":"Calculadora de Empréstimos","index":0,"n_rows":22,"n_cols":13,"rows_kept":22,"merged":[[1,1,1,3],[1,6,2,8],[1,11,2,12],[2,1,2,3],[6,5,6,6],[7,5,7,6],[10,2,10,5],[10,6,10,8],[10,9,10,12],[18,2,18,12]]}
[]
[null,"EMPRÉSTIMO UNIVERSITÁRIO ",{"$nulls":4},{"v":50000,"d":"50,000 €"},{"$nulls":4},"2011-05-10"]
[null,"CALCULADORA "]
[]
[null," É sugerido que o total dos seus pagamentos mensais do empréstimo de estudante não exceda 8% do seu salário anual no primeiro ano."]
[]
[null,null,"O seu pagamento mensal combinado atual é de:",null,null,{"$f":"EmpréstimosUniversitários[[#Totals],[Pagamento Mensal Atual]]","v":{"v":190.91792743033542,"d":"190.92 €"}},null,null,"O seu pagamento mensal agendado combinado é de:",{"$nulls":3},{"$f":"EmpréstimosUniversitários[[#Totals],[Pagamento Agendado]]","v":{"v":328.58590726058833,"d":"328.59 €"}}]
[null,null,"Percentagem do rendimento mensal:",null,null,{"$f":"EmpréstimosUniversitários[[#Totals],[Pagamento Mensal Atual]]/RendimentoMensalEstimado","v":{"v":0.0458203025832805,"d":"4.58%"}},null,null," Percentagem do rendimento mensal:",{"$nulls":3},{"$f":"EmpréstimosUniversitários[[#Totals],[Pagamento Agendado]]/RendimentoMensalEstimado","v":{"v":0.07886061774254119,"d":"7.89%"}}]
[]
[]
[null,null,"DETALHES GERAIS DO EMPRÉSTIMO",{"$nulls":3},"DADOS DE PAGAMENTO DO EMPRÉSTIMO",null,null,"DETALHES DO PAGAMENTO"]
[null,null,"Empréstimo Nº.","Credor","Montante do Empréstimo","Taxa de Juro Anual","Data de Início","Duração (Anos)","Data de Fim","Pagamento Mensal Atual","Total de Juros","Pagamento Agendado","Pagamento Anual"]
[null,null,"10998M88","Credor 1",{"v":10000,"d":"10,000.00 €"},{"v":0.05,"d":"5.00%"},"2011-04-01",10,{"$f":"IF(AND(EmpréstimosUniversitários[[#This Row],[Data de Início]]>0,EmpréstimosUniversitários[[#This Row],[Duração (Anos)]]>0),EDATE(EmpréstimosUniversitários[[#This Row],[Data de Início]],EmpréstimosUniversitários[[#This Row],[Duração (Anos)]]*12),\"\")","v":"2021-04-01"},{"$f":"IF(AND(InícioDeEmpréstimoLHoje,COUNT(EmpréstimosUniversitários[[#This Row],[Montante do Empréstimo]]:EmpréstimosUniversitários[[#This Row],[Duração (Anos)]])=4,EmpréstimosUniversitários[[#This Row],[Data de Início]]<TODAY()),PMT(EmpréstimosUniversitários[[#This Row],[Taxa de Juro Anual]]/12,EmpréstimosUniversitários[[#This Row],[Duração (Anos)]]*12,-EmpréstimosUniversitários[[#This Row],[Montante do Empréstimo]],0,0),\"\")","v":{"v":106.06551523907524,"d":"106.07 €"}},{"$f":"IFERROR((EmpréstimosUniversitários[[#This Row],[Pagamento Agendado]]*(EmpréstimosUniversitários[[#This Row],[Duração (Anos)]]*12))-EmpréstimosUniversitários[[#This Row],[Montante do Empréstimo]],\"\")","v":{"v":2727.8618286890287,"d":"2,727.86 €"}},{"$f":"IF(COUNTA(EmpréstimosUniversitários[[#This Row],[Montante do Empréstimo]]:EmpréstimosUniversitários[[#This Row],[Duração (Anos)]])<>4,\"\",PMT(EmpréstimosUniversitários[[#This Row],[Taxa de Juro Anual]]/12,EmpréstimosUniversitários[[#This Row],[Duração (Anos)]]*12,-EmpréstimosUniversitários[[#This Row],[Montante do Empréstimo]],0,0))","v":{"v":106.06551523907524,"d":"106.07 €"}},{"$f":"IFERROR(EmpréstimosUniversitários[[#This Row],[Pagamento Agendado]]*12,\"\")","v":{"v":1272.7861828689029,"d":"1,272.79 €"}}]
[null,null,"20987N87","Credor 2",{"v":8000,"d":"8,000.00 €"},{"v":0.05,"d":"5.00%"},"2011-05-01",10,{"$f":"IF(AND(EmpréstimosUniversitários[[#This Row],[Data de Início]]>0,EmpréstimosUniversitários[[#This Row],[Duração (Anos)]]>0),EDATE(EmpréstimosUniversitários[[#This Row],[Data de Início]],EmpréstimosUniversitários[[#This Row],[Duração (Anos)]]*12),\"\")","v":"2021-05-01"},{"$f":"IF(AND(InícioDeEmpréstimoLHoje,COUNT(EmpréstimosUniversitários[[#This Row],[Montante do Empréstimo]]:EmpréstimosUniversitários[[#This Row],[Duração (Anos)]])=4,EmpréstimosUniversitários[[#This Row],[Data de Início]]<TODAY()),PMT(EmpréstimosUniversitários[[#This Row],[Taxa de Juro Anual]]/12,EmpréstimosUniversitários[[#This Row],[Duração (Anos)]]*12,-EmpréstimosUniversitários[[#This Row],[Montante do Empréstimo]],0,0),\"\")","v":{"v":84.85241219126019,"d":"84.85 €"}},{"$f":"IFERROR((EmpréstimosUniversitários[[#This Row],[Pagamento Agendado]]*(EmpréstimosUniversitários[[#This Row],[Duração (Anos)]]*12))-EmpréstimosUniversitários[[#This Row],[Montante do Empréstimo]],\"\")","v":{"v":2182.289462951223,"d":"2,182.29 €"}},{"$f":"IF(COUNTA(EmpréstimosUniversitários[[#This Row],[Montante do Empréstimo]]:EmpréstimosUniversitários[[#This Row],[Duração (Anos)]])<>4,\"\",PMT(EmpréstimosUniversitários[[#This Row],[Taxa de Juro Anual]]/12,EmpréstimosUniversitários[[#This Row],[Duração (Anos)]]*12,-EmpréstimosUniversitários[[#This Row],[Montante do Empréstimo]],0,0))","v":{"v":84.85241219126019,"d":"84.85 €"}},{"$f":"IFERROR(EmpréstimosUniversitários[[#This Row],[Pagamento Agendado]]*12,\"\")","v":{"v":1018.2289462951222,"d":"1,018.23 €"}}]
[null,null,"36785LM","Credor 3",{"v":6000,"d":"6,000.00 €"},{"v":0.045,"d":"4.50%"},"2012-03-01",10,{"$f":"IF(AND(EmpréstimosUniversitários[[#This Row],[Data de Início]]>0,EmpréstimosUniversitários[[#This Row],[Duração (Anos)]]>0),EDATE(EmpréstimosUniversitários[[#This Row],[Data de Início]],EmpréstimosUniversitários[[#This Row],[Duração (Anos)]]*12),\"\")","v":"2022-03-01"},{"$f":"IF(AND(InícioDeEmpréstimoLHoje,COUNT(EmpréstimosUniversitários[[#This Row],[Montante do Empréstimo]]:EmpréstimosUniversitários[[#This Row],[Duração (Anos)]])=4,EmpréstimosUniversitários[[#This Row],[Data de Início]]<TODAY()),PMT(EmpréstimosUniversitários[[#This Row],[Taxa de Juro Anual]]/12,EmpréstimosUniversitários[[#This Row],[Duração (Anos)]]*12,-EmpréstimosUniversitários[[#This Row],[Montante do Empréstimo]],0,0),\"\")","v":""},{"$f":"IFERROR((EmpréstimosUniversitários[[#This Row],[Pagamento Agendado]]*(EmpréstimosUniversitários[[#This Row],[Duração (Anos)]]*12))-EmpréstimosUniversitários[[#This Row],[Montante do Empréstimo]],\"\")","v":{"v":1461.9654305051017,"d":"1,461.97 €"}},{"$f":"IF(COUNTA(EmpréstimosUniversitários[[#This Row],[Montante do Empréstimo]]:EmpréstimosUniversitários[[#This Row],[Duração (Anos)]])<>4,\"\",PMT(EmpréstimosUniversitários[[#This Row],[Taxa de Juro Anual]]/12,EmpréstimosUniversitários[[#This Row],[Duração (Anos)]]*12,-EmpréstimosUniversitários[[#This Row],[Montante do Empréstimo]],0,0))","v":{"v":62.18304525420918,"d":"62.18 €"}},{"$f":"IFERROR(EmpréstimosUniversitários[[#This Row],[Pagamento Agendado]]*12,\"\")","v":{"v":746.1965430505102,"d":"746.20 €"}}]
[null,null,"765R43","Credor 4",{"v":4000,"d":"4,000.00 €"},{"v":0.05,"d":"5.00%"},"2012-05-01",5,{"$f":"IF(AND(EmpréstimosUniversitários[[#This Row],[Data de Início]]>0,EmpréstimosUniversitários[[#This Row],[Duração (Anos)]]>0),EDATE(EmpréstimosUniversitários[[#This Row],[Data de Início]],EmpréstimosUniversitários[[#This Row],[Duração (Anos)]]*12),\"\")","v":"2017-05-01"},{"$f":"IF(AND(InícioDeEmpréstimoLHoje,COUNT(EmpréstimosUniversitários[[#This Row],[Montante do Empréstimo]]:EmpréstimosUniversitários[[#This Row],[Duração (Anos)]])=4,EmpréstimosUniversitários[[#This Row],[Data de Início]]<TODAY()),PMT(EmpréstimosUniversitários[[#This Row],[Taxa de Juro Anual]]/12,EmpréstimosUniversitários[[#This Row],[Duração (Anos)]]*12,-EmpréstimosUniversitários[[#This Row],[Montante do Empréstimo]],0,0),\"\")","v":""},{"$f":"IFERROR((EmpréstimosUniversitários[[#This Row],[Pagamento Agendado]]*(EmpréstimosUniversitários[[#This Row],[Duração (Anos)]]*12))-EmpréstimosUniversitários[[#This Row],[Montante do Empréstimo]],\"\")","v":{"v":529.0960745626244,"d":"529.10 €"}},{"$f":"IF(COUNTA(EmpréstimosUniversitários[[#This Row],[Montante do Empréstimo]]:EmpréstimosUniversitários[[#This Row],[Duração (Anos)]])<>4,\"\",PMT(EmpréstimosUniversitários[[#This Row],[Taxa de Juro Anual]]/12,EmpréstimosUniversitários[[#This Row],[Duração (Anos)]]*12,-EmpréstimosUniversitários[[#This Row],[Montante do Empréstimo]],0,0))","v":{"v":75.48493457604374,"d":"75.48 €"}},{"$f":"IFERROR(EmpréstimosUniversitários[[#This Row],[Pagamento Agendado]]*12,\"\")","v":{"v":905.8192149125249,"d":"905.82 €"}}]
[null,null,"TOTAIS",null,{"$f":"SUBTOTAL(109,EmpréstimosUniversitários[Montante do Empréstimo])","v":{"v":28000,"d":"28,000.00 €"}},{"$nulls":4},{"$f":"SUBTOTAL(109,EmpréstimosUniversitários[Pagamento Mensal Atual])","v":{"v":190.91792743033542,"d":"190.92 €"}},{"$f":"SUBTOTAL(109,EmpréstimosUniversitários[Total de Juros])","v":{"v":6901.212796707978,"d":"6,901.21 €"}},{"$f":"SUBTOTAL(109,EmpréstimosUniversitários[Pagamento Agendado])","v":{"v":328.58590726058833,"d":"328.59 €"}},{"$f":"SUBTOTAL(109,EmpréstimosUniversitários[Pagamento Anual])","v":{"v":3943.03088712706,"d":"3,943.03 €"}}]
[null,null,"Médias",null,{"$f":"AVERAGE(EmpréstimosUniversitários[Montante do Empréstimo])","v":{"v":7000,"d":"7,000.00 €"}},{"$f":"AVERAGE(EmpréstimosUniversitários[Taxa de Juro Anual])","v":{"v":0.04875,"d":"4.88%"}},{"$nulls":4},{"$f":"AVERAGE(EmpréstimosUniversitários[Total de Juros])","v":{"v":1725.3031991769944,"d":"1,725.30 €"}},null,{"$f":"AVERAGE(EmpréstimosUniversitários[Pagamento Anual])","v":{"v":985.757721781765,"d":"985.76 €"}}]
[]
[{"$nulls":10},"Total Consolidado do Pagamento do Empréstimo:",null,{"$f":"EmpréstimosUniversitários[[#Totals],[Montante do Empréstimo]]+EmpréstimosUniversitários[[#Totals],[Total de Juros]]","v":{"v":34901.21279670798,"d":"34,901.21 €"}}]
[]
[{"$nulls":10},"Estimativa do Rendimento Mensal Após a Licenciatura:",null,{"$f":"(RendimentoAnualEstimado/12)","v":{"v":4166.666666666667,"d":"4,166.67 €"}}]